fUST/lending_fUST_20240507
["ID","MTS","AMOUNT","RATE_DAILY","PERIOD"]
[326518755,1715038250108,-500.0,0.00016712,2]
[326518757,1715038250118,-500.0,0.00016712,2]
[326518759,1715038250129,-962.33,0.00016712,2]
[326518761,1715038250139,-500.0,0.00016712,2]
[326518763,1715038250149,-500.0,0.00016712,2]
[326518765,1715038250160,-616.59990771,0.00016712,2]
[326518767,1715038250173,-500.0,0.00016712,2]
[326518769,1715038250184,-192.10916248,0.00016712,2]
[326518771,1715038250197,-307.89083752,0.00016712,2]
[326518773,1715038250208,-500.0,0.00016712,2]
[326518776,1715038250218,-105.35518985,0.00016712,2]
[326518803,1715038250493,-4204.11481015,0.00016712,2]
[326518804,1715038250503,-500.0,0.00016712,2]
[326518806,1715038250514,-415.29430171,0.00016712,2]
[326518808,1715038250524,-500.0,0.00016712,2]
[326518810,1715038250534,-537.12,0.00016712,2]
[326518812,1715038250545,-500.0,0.00016712,2]
[326518814,1715038250555,-9.75634945,0.00016712,2]
[326518817,1715038250568,-490.24365055,0.00016712,2]
[326518819,1715038250578,-521.76,0.00016712,2]
[326518821,1715038250588,-500.0,0.00016712,2]
[326518823,1715038250599,-2691.59,0.00016712,2]
[326518825,1715038250609,-500.0,0.00016712,2]
[326518827,1715038250619,-14.61350855,0.00016712,2]
[326518833,1715038250678,-1113.16649145,0.00016712,2]
[326518835,1715038250688,-500.0,0.00016712,2]
[326518837,1715038250699,-500.0,0.00016712,2]
[326518840,1715038250709,-500.0,0.00016712,2]
[326518842,1715038250720,-500.0,0.00016712,2]
[326518844,1715038250731,-500.0,0.00016712,2]
[326518846,1715038250742,-20394.94,0.00016712,2]
[326518848,1715038250752,-1007.29,0.00016712,2]
[326518850,1715038250762,-2525.73,0.00016712,2]
[326518852,1715038250773,-509.43,0.00016712,2]
[326518854,1715038250784,-1659.8,0.00016712,2]
[326518856,1715038250795,-500.0,0.00016712,2]
[326518857,1715038250805,-500.0,0.00016712,2]
[326518859,1715038250816,-572.96,0.00016712,2]
[326518861,1715038250826,-3902.87,0.00016712,2]
[326518863,1715038250837,-2536.67,0.00016712,2]
[326518865,1715038250847,-1104.7,0.00016712,2]
[326518867,1715038250861,-507.75,0.00016712,2]
[326518869,1715038250871,-2235.63,0.00016712,2]
[326518871,1715038250882,-991.74,0.00016712,2]
[326518873,1715038250892,-500.0,0.00016712,2]
[326518875,1715038250903,-500.0,0.00016712,2]
[326518877,1715038250914,-500.0,0.00016712,2]
[326518879,1715038250925,-500.0,0.00016712,2]
[326518881,1715038250935,-783.34,0.00016712,2]
[326518883,1715038250947,-500.0,0.00016712,2]
[326518885,1715038250957,-2617.62,0.00016712,2]
[326518887,1715038250969,-7946.92894707,0.0001688,2]
[326518889,1715038250980,-177.7,0.00016915,3]
[326518892,1715038250991,-2920.1099041,0.00016986,5]
[326518894,1715038251001,-500.0,0.00016986,2]
[326518896,1715038251012,-500.0,0.00016986,2]
[326518898,1715038251022,-439.13357128,0.00016986,2]
[326518900,1715038251033,-500.0,0.00016986,2]
[326518902,1715038251044,-500.0,0.00016986,2]
[326518904,1715038251054,-500.0,0.00016986,2]
[326518906,1715038251065,-496.43660071,0.00016986,2]
[326518934,1715038251467,-500.0,0.00016438,2]
[326518936,1715038251477,-500.0,0.00016438,2]
[326518937,1715038251487,-500.0,0.00016712,2]
[326518939,1715038251497,-3.56339929,0.00016986,2]
[326518941,1715038251507,-500.0,0.00016986,2]
[326518943,1715038251517,-1240.5,0.00016986,2]
[326518944,1715038251526,-500.0,0.00016986,2]
[326518946,1715038251536,-500.0,0.00016986,2]
[326518948,1715038251547,-881.4,0.00016986,2]
[326518950,1715038251557,-500.0,0.00016986,2]
[326518951,1715038251567,-401.4025557,0.00016986,2]
[326518953,1715038251578,-500.0,0.00016986,2]
[326518955,1715038251588,-500.0,0.00016986,2]
[326518957,1715038251599,-500.0,0.00016986,2]
[326518959,1715038251611,-500.0,0.00016986,2]
[326518960,1715038251621,-500.0,0.00016986,2]
[326518962,1715038251632,-500.0,0.00016986,2]
[326518964,1715038251641,-500.0,0.00016986,2]
[326518966,1715038251653,-500.0,0.00016986,2]
[326518968,1715038251663,-1351.16,0.00016986,2]
[326518969,1715038251673,-579.35,0.00016986,2]
[326518971,1715038251683,-568.25,0.00016986,2]
[326518973,1715038251693,-562.0,0.00016986,2]
[326518975,1715038251703,-500.0,0.00016986,2]
[326518976,1715038251713,-500.0,0.00016986,2]
[326518978,1715038251723,-500.0,0.00016986,2]
[326518980,1715038251734,-500.0,0.00016986,2]
[326518982,1715038251744,-390.60102489,0.00016986,2]
[326520731,1715038364747,1464.86926182,0.0001,2]
[326520732,1715038419664,1476.22555737,0.00027,30]
[326520733,1715038430330,16118.63883311,0.0001,2]
[326520735,1715038431301,154.70605849,0.0001,2]
[326520736,1715038436290,19216.82461948,0.0001,2]
[326520737,1715038447353,156.04468456,0.0001,2]
[326520738,1715038449935,19216.82461948,0.0001,2]
[326520739,1715038450256,2243.75770396,0.0001,2]
[326520740,1715038450287,2980.12293712,0.0001,2]
[326520741,1715038466227,7967.21632675,0.0001,2]
[326520743,1715038784710,1042.71154476,9.999e-05,2]
[326520745,1715038900698,483.81492302,9.999e-05,2]
[326520746,1715039106026,12987.03951042,0.00027,30]
[326520747,1715039153693,154.70605849,9.999e-05,2]
[326520748,1715039355792,483.81492302,9.999e-05,2]
[326520749,1715039400327,1336.08187875,9.999e-05,2]
[326520759,1715039433925,-559.45431183,0.00013984,2]
[326520760,1715039433940,-1048.245,0.00013984,2]
[326520762,1715039433953,-1021.60133539,0.00013984,2]
[326520764,1715039433962,-24900.0,0.00013985,2]
[326520766,1715039433972,-2811.64925494,0.00013995,2]
[326520768,1715039433981,-929.6379252,0.00014,2]
[326520769,1715039433990,-276.437853,0.00014761,2]
[326520770,1715039433999,-379.5668552,0.00015134,2]
[326520771,1715039434009,-412.46510919,0.00015134,2]
[326520772,1715039434020,-154.81418591,0.00015134,2]
[326520773,1715039434029,-1103.68235674,0.00015134,2]
[326520774,1715039434040,-731.19073412,0.00015134,2]
[326520775,1715039434049,-783.06873209,0.00015134,2]
[326520776,1715039434058,-334.47135234,0.00015134,2]
[326520777,1715039434067,-1225.56596591,0.00015134,2]
[326520778,1715039434076,-409.8188838,0.00015135,2]
[326520779,1715039434089,-65.71791064,0.00015135,2]
[326520780,1715039434098,-167.173135,0.0001589,2]
[326520781,1715039434109,-158.07345455,0.00016436,2]
[326520782,1715039434118,-708.55311686,0.00016436,2]
[326520783,1715039434128,-240.14730736,0.00016436,2]
[326520784,1715039434138,-154.72145202,0.00016437,2]
[326520785,1715039434147,-500.0,0.00016438,2]
[326520786,1715039434157,-500.0,0.00016438,2]
[326520787,1715039434166,-500.0,0.00016438,2]
[326520788,1715039434175,-500.0,0.00016438,2]
[326520789,1715039434184,-500.0,0.00016438,2]
[326520790,1715039434198,-500.0,0.00016438,2]
[326520791,1715039434208,-500.0,0.00016438,2]
[326520792,1715039434217,-500.0,0.00016438,2]
[326520793,1715039434226,-500.0,0.00016438,2]
[326520794,1715039434235,-500.0,0.00016438,2]
[326520795,1715039434244,-500.0,0.00016438,2]
[326520796,1715039434253,-500.0,0.00016438,2]
[326520797,1715039434262,-500.0,0.00016438,2]
[326520798,1715039434271,-1684.37,0.00016438,2]
[326520799,1715039434282,-500.0,0.00016438,2]
[326520800,1715039434292,-500.0,0.00016438,2]
[326520801,1715039434301,-906.53,0.00016438,2]
[326520802,1715039434310,-500.0,0.00016438,2]
[326520803,1715039434319,-500.0,0.00016438,2]
[326520804,1715039434328,-500.0,0.00016438,2]
[326520805,1715039434337,-500.0,0.00016438,2]
[326520806,1715039434347,-500.0,0.00016438,2]
[326520807,1715039434356,-500.0,0.00016438,2]
[326520808,1715039434366,-500.0,0.00016438,2]
[326520809,1715039434381,-500.0,0.00016438,2]
[326520810,1715039434393,-500.0,0.00016438,2]
[326520811,1715039434402,-500.0,0.00016438,2]
[326520812,1715039434411,-542.77565645,0.00016438,2]
[326520813,1715039434420,-500.0,0.00016438,2]
[326520814,1715039434429,-500.0,0.00016438,2]
[326520815,1715039434439,-500.0,0.00016438,2]
[326520816,1715039434448,-500.0,0.00016438,2]
[326520817,1715039434458,-500.0,0.00016438,2]
[326520818,1715039434468,-500.0,0.00016438,2]
[326520819,1715039434477,-500.0,0.00016438,2]
[326520820,1715039434486,-500.0,0.00016438,2]
[326520821,1715039434495,-500.0,0.00016438,2]
[326520822,1715039434504,-544.41,0.00016438,2]
[326520823,1715039434514,-500.0,0.00016438,2]
[326520824,1715039434524,-500.0,0.00016438,2]
[326520825,1715039434534,-511.94366589,0.00016438,2]
[326520826,1715039434543,-500.0,0.00016438,2]
[326520827,1715039434553,-500.0,0.00016438,2]
[326520828,1715039434563,-1085.43,0.00016438,2]
[326520829,1715039434572,-500.0,0.00016438,2]
[326520830,1715039434582,-500.0,0.00016438,2]
[326520831,1715039434591,-608.4,0.00016438,2]
[326520832,1715039434600,-500.0,0.00016438,2]
[326520833,1715039434610,-500.0,0.00016438,2]
[326520834,1715039434620,-500.0,0.00016438,2]
[326520835,1715039434629,-500.0,0.00016438,2]
[326520836,1715039434638,-500.0,0.00016438,2]
[326520837,1715039434648,-631.86,0.00016438,2]
[326520838,1715039434657,-500.0,0.00016438,2]
[326520839,1715039434666,-500.0,0.00016438,2]
[326520840,1715039434675,-500.0,0.00016438,2]
[326520841,1715039434685,-506.82520255,0.00016438,2]
[326520842,1715039434694,-515.88,0.00016438,2]
[326520843,1715039434704,-500.0,0.00016438,2]
[326520844,1715039434713,-1231.56,0.00016438,2]
[326520845,1715039434722,-500.0,0.00016438,2]
[326520846,1715039434731,-500.0,0.00016438,2]
[326520847,1715039434741,-500.0,0.00016438,2]
[326520848,1715039434750,-500.0,0.00016438,2]
[326520849,1715039434759,-465.74112308,0.00016438,2]
[326520850,1715039434776,-500.0,0.00016438,2]
[326520851,1715039434789,-500.0,0.00016438,2]
[326520852,1715039434799,-500.0,0.00016438,2]
[326520853,1715039434811,-500.0,0.00016438,2]
[326520854,1715039434821,-500.0,0.00016438,2]
[326520855,1715039434830,-500.0,0.00016438,2]
[326520856,1715039434840,-500.0,0.00016438,2]
[326520857,1715039434849,-500.0,0.00016438,2]
[326520858,1715039434858,-703.03,0.00016438,2]
[326520859,1715039434867,-500.0,0.00016438,2]
[326520860,1715039434877,-500.0,0.00016438,2]
[326520861,1715039434887,-555.98,0.00016438,2]
[326520862,1715039434896,-500.0,0.00016438,2]
[326520863,1715039434905,-500.0,0.00016438,2]
[326520864,1715039434915,-1657.06,0.00016438,2]
[326520865,1715039434924,-465.99993247,0.00016438,2]
[326520866,1715039434934,-500.0,0.00016438,2]
[326520867,1715039434943,-500.0,0.00016438,2]
[326520868,1715039434954,-715.67,0.00016438,2]
[326520869,1715039434963,-500.0,0.00016438,2]
[326520870,1715039434972,-500.0,0.00016438,2]
[326520871,1715039434981,-500.0,0.00016438,2]
[326520872,1715039434990,-500.0,0.00016438,2]
[326520873,1715039435000,-500.0,0.00016438,2]
[326520874,1715039435010,-500.0,0.00016438,2]
[326520875,1715039435020,-500.0,0.00016438,2]
[326520876,1715039435029,-500.0,0.00016438,2]
[326520877,1715039435039,-500.0,0.00016438,2]
[326520878,1715039435048,-500.0,0.00016438,2]
[326520879,1715039435058,-500.0,0.00016438,2]
[326520880,1715039435067,-500.0,0.00016438,2]
[326520881,1715039435077,-500.0,0.00016438,2]
[326520882,1715039435086,-500.0,0.00016438,2]
[326520883,1715039435095,-500.0,0.00016438,2]
[326520884,1715039435104,-500.0,0.00016438,2]
[326520885,1715039435113,-500.0,0.00016438,2]
[326520886,1715039435123,-500.0,0.00016438,2]
[326520887,1715039435132,-500.0,0.00016438,2]
[326520888,1715039435141,-500.0,0.00016438,2]
[326520889,1715039435150,-500.0,0.00016438,2]
[326520890,1715039435159,-500.0,0.00016438,2]
[326520891,1715039435168,-500.0,0.00016438,2]
[326520892,1715039435177,-500.0,0.00016438,2]
[326520893,1715039435187,-500.0,0.00016438,2]
[326520894,1715039435205,-500.0,0.00016438,2]
[326520895,1715039435214,-500.0,0.00016438,2]
[326520896,1715039435224,-500.0,0.00016438,2]
[326520897,1715039435234,-500.0,0.00016438,2]
[326520898,1715039435244,-500.0,0.00016438,2]
[326520899,1715039435254,-500.0,0.00016438,2]
[326520900,1715039435263,-500.0,0.00016438,2]
[326520901,1715039435273,-521.2724443,0.00016438,2]
[326520902,1715039435283,-500.0,0.00016438,2]
[326520903,1715039435293,-500.0,0.00016438,2]
[326520904,1715039435303,-502.32,0.00016438,2]
[326520905,1715039435312,-500.0,0.00016438,2]
[326520906,1715039435321,-238.98586832,0.00016438,2]
[326520907,1715039435331,-500.0,0.00016438,2]
[326520908,1715039435340,-805.25,0.00016438,2]
[326520909,1715039435349,-500.0,0.00016438,2]
[326520910,1715039435359,-500.0,0.00016438,2]
[326520911,1715039435368,-500.0,0.00016438,2]
[326520912,1715039435542,-500.0,0.00016438,2]
[326520913,1715039435557,-500.0,0.00016438,2]
[326520914,1715039435567,-500.0,0.00016438,2]
[326520915,1715039435576,-500.0,0.00016438,2]
[326520916,1715039435585,-1000.0,0.00016438,2]
[326520917,1715039435595,-500.0,0.00016438,2]
[326520918,1715039435604,-1839.97502618,0.00016438,2]
[326520958,1715039441131,-3169.23497382,0.00016438,2]
[326520959,1715039441140,-149.33458672,0.00016438,2]
[326520962,1715039441152,-884.46541328,0.00016438,2]
[326520963,1715039441174,-382.53184537,0.00016438,2]
[326521708,1715039449206,-1464.86926182,0.00016437,2]
[326521709,1715039449217,-928.36270993,0.00016437,2]
[326521710,1715039449226,-731.19073412,0.00016437,2]
[326521711,1715039449236,-117.46815463,0.00016438,2]
[326521712,1715039449249,-500.0,0.00016438,2]
[326521713,1715039449258,-500.0,0.00016438,2]
[326521714,1715039449268,-574.87,0.00016438,2]
[326521715,1715039449278,-500.0,0.00016438,2]
[326521716,1715039449287,-500.0,0.00016438,2]
[326521717,1715039449297,-4437.82,0.00016438,2]
[326521718,1715039449307,-500.0,0.00016438,2]
[326521719,1715039449316,-500.0,0.00016438,2]
[326521720,1715039449326,-500.0,0.00016438,2]
[326521721,1715039449335,-500.0,0.00016438,2]
[326521722,1715039449344,-500.0,0.00016438,2]
[326521723,1715039449354,-500.0,0.00016438,2]
[326521724,1715039449363,-522.95,0.00016438,2]
[326521725,1715039449372,-500.0,0.00016438,2]
[326521726,1715039449382,-500.0,0.00016438,2]
[326521727,1715039449391,-500.0,0.00016438,2]
[326521728,1715039449401,-500.0,0.00016438,2]
[326521729,1715039449410,-500.0,0.00016438,2]
[326521730,1715039449420,-500.0,0.00016438,2]
[326521731,1715039449429,-500.0,0.00016438,2]
[326521732,1715039449440,-18695.37,0.00016438,2]
[326521733,1715039449449,-500.0,0.00016438,2]
[326521734,1715039449459,-500.0,0.00016438,2]
[326521735,1715039449470,-500.0,0.00016438,2]
[326521736,1715039449479,-500.0,0.00016438,2]
[326521737,1715039449488,-500.0,0.00016438,2]
[326521738,1715039449498,-500.0,0.00016438,2]
[326521740,1715039449507,-500.0,0.00016438,2]
[326521742,1715039449517,-500.0,0.00016438,2]
[326521744,1715039449527,-500.0,0.00016438,2]
[326521746,1715039449536,-3065.18,0.00016438,2]
[326521748,1715039449547,-500.0,0.00016438,2]
[326521750,1715039449556,-500.0,0.00016438,2]
[326521752,1715039449566,-1696.43,0.00016438,2]
[326521754,1715039449576,-500.0,0.00016438,2]
[326521756,1715039449585,-516.66331737,0.00016438,2]
[326521758,1715039449595,-500.0,0.00016438,2]
[326521760,1715039449604,-3039.72,0.00016438,2]
[326521761,1715039449614,-500.0,0.00016438,2]
[326521763,1715039449623,-500.0,0.00016438,2]
[326521765,1715039449633,-500.0,0.00016438,2]
[326521766,1715039449642,-500.0,0.00016438,2]
[326521767,1715039449652,-500.0,0.00016438,2]
[326521768,1715039449661,-500.0,0.00016438,2]
[326521769,1715039449671,-500.0,0.00016438,2]
[326521770,1715039449680,-500.0,0.00016438,2]
[326521771,1715039449690,-2199.12,0.00016438,2]
[326521772,1715039449699,-500.0,0.00016438,2]
[326521773,1715039449709,-293.9094429,0.00016438,2]
[326521774,1715039449719,-909.09,0.00016438,2]
[326521775,1715039449729,-1147.92675179,0.00016438,2]
[326521776,1715039449738,-500.0,0.00016438,2]
[326521777,1715039449747,-500.0,0.00016438,2]
[326521778,1715039449757,-667.83,0.00016438,2]
[326521779,1715039449766,-4858.09419375,0.00016438,2]
[326521780,1715039449779,-324.25178111,0.00016438,2]
[326522054,1715039629827,4863.7722144,9.999e-05,2]
[326522056,1715039838212,150.0,0.00027,30]
[326522057,1715039908178,1464.86926182,0.0001,2]
[326522058,1715039946509,483.81492302,9.999e-05,2]
[326522059,1715039977150,227.03845614,0.0001,2]
[326522060,1715039979460,880.22323369,0.0001,2]
[326522061,1715039984996,2084.90379946,0.0001,2]
[326522062,1715039990557,16108.00888911,0.0001,2]
[326522063,1715040023354,2084.90379946,0.0001,2]
[326522064,1715040044583,2084.90379946,0.0001,2]
[326522065,1715040078058,2084.90379946,0.0001,2]
[326522066,1715040097782,2084.90379946,0.0001,2]
[326522067,1715040118750,2084.90379946,0.0001,2]
[326522068,1715040144261,2086.15678154,0.0001,2]
[326522069,1715040161250,2083.65081738,0.0001,2]
[326522070,1715040179645,1299.86695016,0.0001,2]
[326522071,1715040328908,300.0,0.00027,30]
[326522072,1715040349652,1464.86926182,0.0001,2]
[326522073,1715040396863,-2152.71563818,0.00014993,2]
[326522074,1715040397408,-314.1575124,0.00015434,2]
[326522086,1715040632341,-184.03411282,0.0001445,2]
[326522088,1715040632351,-642.62310095,0.00014549,2]
[326522090,1715040632363,-822.24616087,0.00014549,2]
[326522092,1715040632373,-59281.35797684,0.00014549,2]
[326522094,1715040632382,-24900.0,0.0001455,2]
[326522096,1715040632392,-2103.48558965,0.00015,2]
[326522097,1715040632401,-940.45532708,0.00015,2]
[326522099,1715040632411,-184.03411282,0.00015079,2]
[326522100,1715040632420,-157.61088999,0.00015333,2]
[326522101,1715040632429,-157.61088999,0.00015405,2]
[326522102,1715040632438,-2152.71563818,0.00015433,2]
[326522103,1715040632448,-285.22063736,0.00015434,2]
[326522104,1715040632457,-132.32151795,0.00015434,2]
[326522105,1715040632466,-2395.29274351,0.00015434,2]
[326522106,1715040632476,-929.30313536,0.00015435,2]
[326522107,1715040632485,-157.61088999,0.00015477,2]
[326522108,1715040632495,-157.61088999,0.00015548,2]
[326522109,1715040632509,-153.0,0.000156,2]
[326522110,1715040632548,-157.61088999,0.0001562,2]
[326522111,1715040632573,-157.61088999,0.00015692,2]
[326522112,1715040632584,-184.03411282,0.00015709,2]
[326522113,1715040632594,-157.61088999,0.00015764,2]
[326522114,1715040632603,-157.61088999,0.00015836,2]
[326522115,1715040632612,-512.443104,0.0001589,2]
[326522116,1715040632622,-157.61088999,0.00015907,2]
[326522117,1715040632631,-153.0,0.00015978,2]
[326522118,1715040632641,-153.0,0.00015978,2]
[326522119,1715040632652,-271.1520628,0.00015978,2]
[326522120,1715040632661,-153.0,0.00015978,2]
[326522121,1715040632671,-157.61088999,0.00015979,2]
[326522122,1715040632682,-157.61088999,0.00016051,2]
[326522123,1715040632691,-161.7974768,0.00016078,2]
[326522124,1715040632701,-157.61088999,0.00016123,2]
[326522125,1715040632711,-157.61088999,0.00016194,2]
[326522126,1715040632721,-157.61088999,0.00016266,2]
[326522127,1715040632732,-157.61088999,0.00016338,2]
[326522128,1715040632741,-184.03411282,0.00016338,2]
[326522129,1715040632751,-153.0,0.00016384,2]
[326522130,1715040632760,-153.0,0.00016384,2]
[326522131,1715040632771,-153.0,0.00016384,2]
[326522132,1715040632781,-401.36002777,0.00016436,2]
[326522133,1715040632791,-154.96928135,0.00016436,2]
[326522134,1715040632800,-890.802326,0.00016436,2]
[326522135,1715040632810,-235.38391635,0.00016436,2]
[326522136,1715040632820,-240.05768409,0.00016436,2]
[326522137,1715040632829,-154.82981083,0.00016436,2]
[326522138,1715040632839,-2760.55149229,0.00016437,2]
[326522139,1715040632848,-7712.86861439,0.00016438,2]
[326522140,1715040632860,-507.06776582,0.00016438,2]
[326522162,1715040640635,-1570.05546368,0.00016438,2]
[326522164,1715040640647,-65964.31486853,0.00016438,2]
[326522221,1715041063538,1464.86926182,0.0001,2]
[326522222,1715041167622,6300.0,0.000103,2]
[326522224,1715041523292,1464.86926182,0.0001,2]
[326522225,1715041702844,200.0,0.00027,30]
[326522246,1715041833868,-1007.88974121,0.00013114,2]
[326522247,1715041833879,-456.97952061,0.00013114,2]
[326522248,1715041833889,-906.33088989,0.00013115,2]
[326522249,1715041833899,-7881.52969368,0.00014574,2]
[326522250,1715041833910,-32286.98014719,0.00014575,2]
[326522308,1715041839520,-15689.02925757,0.00014575,2]
[326524985,1715042136126,4000.0,0.000181,6]
[326524992,1715042191229,1464.86926182,0.0001,2]
[326524993,1715042240227,239.58194544,0.00027,30]
[326524995,1715042307751,239.58194544,0.00027,30]
[326524997,1715042541025,-1464.86926182,0.00012913,2]
[326524998,1715042541047,-615.2889868,0.00012914,2]
[326524999,1715042541069,-159.7217122,0.00013469,2]
[326525000,1715042541090,-1260.12003918,0.00013565,2]
[326525001,1715042631741,465.09462597,9.999e-05,2]
[326525002,1715042946722,465.09462597,9.999e-05,2]
[326525033,1715043038200,-15688.54119062,0.00012567,2]
[326525034,1715043038210,-24900.0,0.00012568,2]
[326525035,1715043038220,-392.24652727,0.00013564,2]
[326525036,1715043038230,-582.53808868,0.00013564,2]
[326525037,1715043038241,-1227.73975091,0.00013564,2]
[326525038,1715043038250,-10053.03838729,0.00013566,2]
[326525039,1715043038263,-964.92850314,0.00013566,2]
[326525062,1715043038785,-1000.11681,0.00013566,2]
[326525166,1715043043944,-30235.20358084,0.00013566,2]
[326525168,1715043043953,-59281.35797684,0.00013566,2]
[326525170,1715043043963,-573.448393,0.00013699,2]
[326525171,1715043043974,-1078.0869273,0.00013699,2]
[326525172,1715043043983,-365.03037246,0.000137,2]
[326525173,1715043043992,-5924.3089156,0.00013939,2]
[326525174,1715043044001,-447.00329869,0.00014572,2]
[326525175,1715043044010,-153.0,0.00014959,2]
[326525176,1715043044019,-157.5009339,0.00015178,2]
[326525177,1715043044030,-153.0,0.00015178,2]
[326525178,1715043044039,-1379.2633025,0.00015433,2]
[326525179,1715043044048,-5300.93900665,0.00015434,2]
[326525180,1715043044061,-153.0,0.000155,2]
[326525181,1715043044072,-153.0,0.00015678,2]
[326525182,1715043044083,-153.0,0.00015678,2]
[326525183,1715043044092,-153.0,0.00015678,2]
[326525184,1715043044101,-153.0,0.00015678,2]
[326525185,1715043044110,-153.0,0.00015678,2]
[326525186,1715043044120,-153.0,0.00015678,2]
[326525187,1715043044131,-370.9806454,0.00015678,2]
[326525188,1715043044140,-153.0,0.00015678,2]
[326525189,1715043044150,-306.0,0.00015678,2]
[326525190,1715043044159,-153.0,0.00015678,2]
[326525191,1715043044168,-153.0,0.00015778,2]
[326525192,1715043044178,-153.0,0.00015778,2]
[326525193,1715043044187,-153.0,0.00015781,2]
[326525194,1715043044196,-153.0,0.00015781,2]
[326525195,1715043044206,-153.0,0.00015878,2]
[326525196,1715043044215,-153.0,0.00015878,2]
[326525197,1715043044225,-390.3869168,0.00015878,2]
[326525198,1715043044235,-167.173135,0.0001589,2]
[326525199,1715043044245,-991.34999599,0.00016,2]
[326525200,1715043044255,-153.0,0.00016,2]
[326525201,1715043044266,-155.93588005,0.00016273,2]
[326525202,1715043044276,-153.0,0.00016384,2]
[326525203,1715043044286,-491.04017451,0.00016436,2]
[326525204,1715043044296,-500.0,0.00016438,2]
[326525205,1715043044305,-500.0,0.00016438,2]
[326525206,1715043044317,-159.2284615,0.00016438,2]
[326525207,1715043044332,-500.0,0.00016438,2]
[326525208,1715043044341,-500.0,0.00016438,2]
[326525209,1715043044352,-500.0,0.00016438,2]
[326525210,1715043044362,-500.0,0.00016438,2]
[326525211,1715043044372,-548.6,0.00016438,2]
[326525212,1715043044383,-500.0,0.00016438,2]
[326525213,1715043044393,-500.0,0.00016438,2]
[326525214,1715043044402,-532.82,0.00016438,2]
[326525215,1715043044413,-552.8752047,0.00016438,2]
[326525216,1715043044423,-500.0,0.00016438,2]
[326525217,1715043044432,-500.0,0.00016438,2]
[326525218,1715043044442,-500.0,0.00016438,2]
[326525219,1715043044451,-181.28,0.00016438,2]
[326525220,1715043044460,-625.4347704,0.00016438,2]
[326525221,1715043044470,-500.0,0.00016438,2]
[326525222,1715043044480,-162.39,0.00016438,2]
[326525223,1715043044490,-500.0,0.00016438,2]
[326525224,1715043044499,-500.0,0.00016438,2]
[326525225,1715043044509,-500.0,0.00016438,2]
[326525226,1715043044519,-500.0,0.00016438,2]
[326525227,1715043044528,-500.0,0.00016438,2]
[326525228,1715043044538,-868.76,0.00016438,2]
[326525229,1715043044548,-500.0,0.00016438,2]
[326525230,1715043044558,-500.0,0.00016438,2]
[326525231,1715043044568,-500.0,0.00016438,2]
[326525232,1715043044578,-240.91,0.00016438,2]
[326525233,1715043044588,-500.0,0.00016438,2]
[326525234,1715043044598,-500.0,0.00016438,2]
[326525235,1715043044610,-500.0,0.00016438,2]
[326525236,1715043044621,-500.0,0.00016438,2]
[326525237,1715043044630,-247.11,0.00016438,2]
[326525238,1715043044639,-500.0,0.00016438,2]
[326525239,1715043044649,-500.0,0.00016438,2]
[326525240,1715043044659,-500.0,0.00016438,2]
[326525241,1715043044668,-500.0,0.00016438,2]
[326525242,1715043044677,-500.0,0.00016438,2]
[326525243,1715043044688,-500.0,0.00016438,2]